{"text_format":"3","workbook":"xlsx","n_sheets":26,"sheets":["Začiatok","1","2","3","4","5","6","7","8","9","10","11","12","13","14","15","16","17","18","19","20","21","22","23","24","Ďalšie informácie"],"not_rendered":{"images":24,"defined_names":8,"pivot_tables":19},"read":"whole","date_system":"1900"}

{"sheet":"Začiatok","index":0,"n_rows":5,"n_cols":1,"rows_kept":5}
["Vitajte\nPokyny pre čítačky obrazovky: Využite kontingenčné tabuľky naplno. Jednoduchá kontingenčná tabuľka poskytuje celkový súhrn údajov, niekedy však potrebujete podrobnejšie odpovede na konkrétne otázky. V takom prípade môže pomôcť pridanie ďalších polí stĺpcov a polí riadkov. \nV pokynoch sa dozviete, na ktorú bunku treba prejsť, ak chcete použiť funkciu alebo pokračovať v čítaní.\nAk chcete začať, stlačte kombináciu klávesov CTRL + PAGE DOWN."]
["Využite kontingenčné tabuľky naplno"]
["Jednoduchá kontingenčná tabuľka poskytuje celkový súhrn údajov,\nniekedy však potrebujete podrobnejšie odpovede na konkrétne otázky.\nV takom prípade môže pomôcť pridanie ďalších polí stĺpcov a polí riadkov."]
["DOBRE VEDIEŤ\nAbsolvovali ste už prvý kurz? Ak nie, prejdite na položky Súbor > Nové a nájdite šablónu Vytvorenie prvej kontingenčnej tabuľky."]
["Späť na začiatok prejdete stlačením kombinácie klávesov CTRL + HOME. Ak chcete začať s prehliadkou, stlačte kombináciu klávesov CTRL + PAGE DOWN."]

{"sheet":"1","index":1,"n_rows":16,"n_cols":9,"rows_kept":16}
["V prvom kurze ste získali základné informácie o koncepte kontingenčnej tabuľky. Vysvetlili sme vám tiež, ako možno pole riadka použiť ako podmienku, ktorá rozdelí pole hodnoty.   "]
["V bunkách H10 až I14 sa nachádza kontingenčná tabuľka, ktorá obsahuje súhrn buniek B8 až E16. Kontingenčná tabuľka má dva stĺpce: Kupujúci a Súčet z Suma. Stĺpec Kupujúci obsahuje hodnoty Otec, Mama, Ema a Celkový súčet; stĺpec Súčet z Suma obsahuje hodnoty 220 EUR, 270 EUR, 810 EUR a 1 300 EUR. Stĺpec kupujúci je tvorený poľom riadka a stĺpec Súčet z Suma je tvorený poľom hodnoty."]
["Ak chcete pokračovať v tomto kurze, stlačte kombináciu klávesov CTRL + PAGE DOWN. Ak chcete prejsť na predchádzajúci hárok, stlačte kombináciu klávesov CTRL + PAGE UP."]
[]
[]
[]
[]
[null,"Dátum","Kupujúci","Typ","Suma"]
["Tento príklad znázorňuje, ako pole riadka...","2017-01-01","Otec","Darčeky",{"v":95,"d":"95 EUR"}]
["...rozdelí pole hodnoty.","2017-01-15","Mama","Strava",{"v":325,"d":"325 EUR"},null,null,"Kupujúci","Súčet z Suma"]
[null,"2017-01-17","Mama","Lístky",{"v":250,"d":"250 EUR"},null,null,"Otec",{"v":220,"d":"220 EUR"}]
[null,"2017-01-21","Otec","Strava",{"v":125,"d":"125 EUR"},null,null,"Ema",{"v":270,"d":"270 EUR"}]
[null,"2017-02-02","Mama","Strava",{"v":235,"d":"235 EUR"},null,null,"Mama",{"v":810,"d":"810 EUR"}]
[null,"2017-02-20","Ema","Hudba",{"v":20,"d":"20 EUR"},null,null,"Celkový súčet",{"v":1300,"d":"1,300 EUR"}]
[null,"2017-02-25","Ema","Lístky",{"v":125,"d":"125 EUR"}]
[null,"2017-02-25","Ema","Šport",{"v":125,"d":"125 EUR"}]

{"sheet":"2","index":2,"n_rows":108,"n_cols":7,"rows_kept":108}
["Keď sa však prvýkrát pozriete na kontingenčnú tabuľku, pravdepodobne z nej budete potrebovať zistiť viac odpovedí."]
["Keď sa prvýkrát pozriete na kontingenčnú tabuľku, pravdepodobne vám napadnú otázky ako „Kedy boli tieto nákupy uskutočnené?“, „Na čo jednotlivé osoby minuli peniaze?“ a „Čo z maminho nákupu bolo také drahé?“."]
["V tomto príklade sa v bunkách F11 až G15 zobrazuje rovnaká kontingenčná tabuľka pozostávajúca z dvoch stĺpcov ako predtým. Stĺpec Kupujúci je poľom riadka a obsahuje hodnoty Otec, Mama, Ema a Celkový súčet; stĺpec Súčet z Suma je poľom hodnoty a obsahuje hodnoty 220 EUR, 270 EUR, 810 EUR a 1 300 EUR. "]
["Ak chcete pokračovať v tomto kurze, stlačte kombináciu klávesov CTRL + PAGE DOWN. Ak chcete prejsť na predchádzajúci hárok, stlačte kombináciu klávesov CTRL + PAGE UP."]
[]
[]
[]
[]
[]
[]
[{"$nulls":5},"Kupujúci","Súčet z Suma"]
[{"$nulls":5},"Otec",{"v":220,"d":"220 EUR"}]
[{"$nulls":5},"Ema",{"v":270,"d":"270 EUR"}]
[{"$nulls":5},"Mama",{"v":810,"d":"810 EUR"}]
[{"$nulls":5},"Celkový súčet",{"v":1300,"d":"1,300 EUR"}]
{"$rows_empty":84}
[null,"Dátum","Kupujúci","Typ","Suma"]
[null,"2017-01-01","Otec","Darčeky",{"v":95,"d":"95 EUR"}]
[null,"2017-01-15","Mama","Strava",{"v":325,"d":"325 EUR"}]
[null,"2017-01-17","Mama","Lístky",{"v":250,"d":"250 EUR"}]
[null,"2017-01-21","Otec","Strava",{"v":125,"d":"125 EUR"}]
[null,"2017-02-02","Mama","Strava",{"v":235,"d":"235 EUR"}]
[null,"2017-02-20","Ema","Hudba",{"v":20,"d":"20 EUR"}]
[null,"2017-02-25","Ema","Lístky",{"v":125,"d":"125 EUR"}]
[null,"2017-02-25","Ema","Šport",{"v":125,"d":"125 EUR"}]

{"sheet":"3","index":3,"n_rows":108,"n_cols":7,"rows_kept":108}
["Všetky tieto otázky majú svoje opodstatnenie, zamerajme sa však len na jednu z nich."]
["Na čo jednotlivé osoby minuli peniaze?"]
["Na porovnanie, bunky F11 až G15 zobrazujú rovnakú kontingenčnú tabuľku pozostávajúcu z dvoch stĺpcov ako predtým. Stĺpec Kupujúci je poľom riadka a obsahuje hodnoty Otec, Mama, Ema a Celkový súčet; stĺpec Súčet z Suma je poľom hodnoty a obsahuje hodnoty 220 EUR, 270 EUR, 810 EUR a 1 300 EUR."]
["Ak chcete pokračovať v tomto kurze, stlačte kombináciu klávesov CTRL + PAGE DOWN. Ak chcete prejsť na predchádzajúci hárok, stlačte kombináciu klávesov CTRL + PAGE UP."]
[]
[]
[]
[]
[]
[]
[{"$nulls":5},"Kupujúci","Súčet z Suma"]
[{"$nulls":5},"Otec",{"v":220,"d":"220 EUR"}]
[{"$nulls":5},"Ema",{"v":270,"d":"270 EUR"}]
[{"$nulls":5},"Mama",{"v":810,"d":"810 EUR"}]
[{"$nulls":5},"Celkový súčet",{"v":1300,"d":"1,300 EUR"}]
{"$rows_empty":84}
[null,"Dátum","Kupujúci","Typ","Suma"]
[null,"2017-01-01","Otec","Darčeky",{"v":95,"d":"95 EUR"}]
[null,"2017-01-15","Mama","Strava",{"v":325,"d":"325 EUR"}]
[null,"2017-01-17","Mama","Lístky",{"v":250,"d":"250 EUR"}]
[null,"2017-01-21","Otec","Strava",{"v":125,"d":"125 EUR"}]
[null,"2017-02-02","Mama","Strava",{"v":235,"d":"235 EUR"}]
[null,"2017-02-20","Ema","Hudba",{"v":20,"d":"20 EUR"}]
[null,"2017-02-25","Ema","Lístky",{"v":125,"d":"125 EUR"}]
[null,"2017-02-25","Ema","Šport",{"v":125,"d":"125 EUR"}]

{"sheet":"4","index":4,"n_rows":108,"n_cols":9,"rows_kept":108}
["Posledná otázka, ktorá nás zaujímala, bola „Na čo jednotlivé osoby minuli peniaze?“."]
["Otázku sme zodpovedali pridaním poľa stĺpca pre hodnotu Typ. Výsledkom je, že kontingenčná tabuľka má päť nových stĺpcov, ktoré zobrazujú jednotlivé typy nákupu vykonané konkrétnou osobou. "]
["Nová kontingenčná tabuľka sa nachádza v bunkách C10 až I15 a obsahuje stĺpce Kupujúci, Strava, Hudba, Šport, Lístky, Darčeky a Celkový súčet. Stĺpce Kupujúci a celkový súčet zostali rovnaké ako predtým, medzi nimi sa nachádzajú nové stĺpce s podrobnosťami."]
["Ak chcete pokračovať v tomto kurze, stlačte kombináciu klávesov CTRL + PAGE DOWN. Ak chcete prejsť na predchádzajúci hárok, stlačte kombináciu klávesov CTRL + PAGE UP."]
[]
[]
[]
[]
[]
[null,null,"Súčet z Suma","Typ"]
[null,null,"Kupujúci","Strava","Hudba","Šport","Lístky","Darčeky","Celkový súčet"]
[null,null,"Otec",{"v":125,"d":"125 EUR"},{"$nulls":3},{"v":95,"d":"95 EUR"},{"v":220,"d":"220 EUR"}]
[null,null,"Ema",null,{"v":20,"d":"20 EUR"},{"v":125,"d":"125 EUR"},{"v":125,"d":"125 EUR"},null,{"v":270,"d":"270 EUR"}]
[null,null,"Mama",{"v":560,"d":"560 EUR"},null,null,{"v":250,"d":"250 EUR"},null,{"v":810,"d":"810 EUR"}]
[null,null,"Celkový súčet",{"v":685,"d":"685 EUR"},{"v":20,"d":"20 EUR"},{"v":125,"d":"125 EUR"},{"v":375,"d":"375 EUR"},{"v":95,"d":"95 EUR"},{"v":1300,"d":"1,300 EUR"}]
{"$rows_empty":84}
[null,"Dátum","Kupujúci","Typ","Suma"]
[null,"2017-01-01","Otec","Darčeky",{"v":95,"d":"95 EUR"}]
[null,"2017-01-15","Mama","Strava",{"v":325,"d":"325 EUR"}]
[null,"2017-01-17","Mama","Lístky",{"v":250,"d":"250 EUR"}]
[null,"2017-01-21","Otec","Strava",{"v":125,"d":"125 EUR"}]
[null,"2017-02-02","Mama","Strava",{"v":235,"d":"235 EUR"}]
[null,"2017-02-20","Ema","Hudba",{"v":20,"d":"20 EUR"}]
[null,"2017-02-25","Ema","Lístky",{"v":125,"d":"125 EUR"}]
[null,"2017-02-25","Ema","Šport",{"v":125,"d":"125 EUR"}]

{"sheet":"5","index":5,"n_rows":108,"n_cols":9,"rows_kept":108}
["Ak je pre vás zložité porozumieť kontingenčnej tabuľke, vyskúšajte toto: Čítajte ju zľava, potom zhora a nakoniec nadol. V príklade nižšie je otec uvedený v bunke C12, strava za 125 EUR v bunke D12, darčeky za 95 EUR v bunke E12 a celkový súčet v hodnote 220 EUR v bunke I12. V riadkoch 13 a 14 sa zobrazujú podrobnosti pre Ema a Mama, v riadku 15 je uvedený Celkový súčet."]
["Ak chcete pokračovať v tomto kurze, stlačte kombináciu klávesov CTRL + PAGE DOWN. Ak chcete prejsť na predchádzajúci hárok, stlačte kombináciu klávesov CTRL + PAGE UP."]
{"$rows_empty":7}
[null,null,"Súčet z Suma","Typ"]
[null,null,"Kupujúci","Strava","Darčeky","Hudba","Šport","Lístky","Celkový súčet"]
[null,null,"Otec",{"v":125,"d":"125 EUR"},{"v":95,"d":"95 EUR"},{"$nulls":3},{"v":220,"d":"220 EUR"}]
[null,null,"Ema",null,null,{"v":20,"d":"20 EUR"},{"v":125,"d":"125 EUR"},{"v":125,"d":"125 EUR"},{"v":270,"d":"270 EUR"}]
[null,null,"Mama",{"v":560,"d":"560 EUR"},{"$nulls":3},{"v":250,"d":"250 EUR"},{"v":810,"d":"810 EUR"}]
[null,null,"Celkový súčet",{"v":685,"d":"685 EUR"},{"v":95,"d":"95 EUR"},{"v":20,"d":"20 EUR"},{"v":125,"d":"125 EUR"},{"v":375,"d":"375 EUR"},{"v":1300,"d":"1,300 EUR"}]
{"$rows_empty":84}
[null,"Dátum","Kupujúci","Typ","Suma"]
[null,"2017-01-01","Otec","Darčeky",{"v":95,"d":"95 EUR"}]
[null,"2017-01-15","Mama","Strava",{"v":325,"d":"325 EUR"}]
[null,"2017-01-17","Mama","Lístky",{"v":250,"d":"250 EUR"}]
[null,"2017-01-21","Otec","Strava",{"v":125,"d":"125 EUR"}]
[null,"2017-02-02","Mama","Strava",{"v":235,"d":"235 EUR"}]
[null,"2017-02-20","Ema","Hudba",{"v":20,"d":"20 EUR"}]
[null,"2017-02-25","Ema","Lístky",{"v":125,"d":"125 EUR"}]
[null,"2017-02-25","Ema","Šport",{"v":125,"d":"125 EUR"}]

{"sheet":"6","index":6,"n_rows":3,"n_cols":1,"rows_kept":3}
["Zatiaľ nič nerobte, o niekoľko krokov neskôr však už začneme s kontingenčnou tabuľkou pracovať. Prvá vec, ktorú urobíte, je vytvorenie podrobností v poli Stĺpce. Urobíte to umiestnením poľa Typ do oblasti poľa Stĺpce."]
["Obrázok zoznamu polia kontingenčnej tabuľky znázorňujúci šípku kurzora, ktorá presúva pole Typ do oblasti Stĺpce."]
["Ak chcete pokračovať v tomto kurze, stlačte kombináciu klávesov CTRL + PAGE DOWN. Ak chcete prejsť na predchádzajúci hárok, stlačte kombináciu klávesov CTRL + PAGE UP."]

{"sheet":"7","index":7,"n_rows":108,"n_cols":8,"rows_kept":108}
["1. Oblasť kontingenčnej tabuľky v tomto príklade sa nachádza v bunkách B13 až C17. Prejdite na ľubovoľnú z týchto buniek."]
["2. Stlačením klávesov ALT + JZ, LB otvorte zoznam polia kontingenčnej tabuľky. Zameranie bude predvolene v textovom poli prehľadávať: upraviť „Prehľadávať“"]
["3. Stláčaním klávesov so šípkami vyberte pole Typ. Po jeho výbere stlačením MEDZERNÍKA pridajte pole Typ do oblasti Riadky. "]
["4. Stláčaním klávesu Tab vyberte pole Typ. Stlačte kláves Enter a potom stláčaním klávesov so šípkami vyberte položku Premiestniť do označení stĺpcov a stlačením klávesu Enter pridajte pole typ do oblasti Stĺpce. Stlačením klávesov ALT + JZ > LB zatvorte tablu Polia kontingenčnej tabuľky."]
["Ak chcete pokračovať v tomto kurze, stlačte kombináciu klávesov CTRL + PAGE DOWN. Ak chcete prejsť na predchádzajúci hárok, stlačte kombináciu klávesov CTRL + PAGE UP."]
[]
[]
[]
[{"$nulls":7},{"$f":"IF(AND($B$14=\"Kupujúci\",$H$17=810),\"Dobrá práca. Umiestnili ste svoje\",\" \")","v":" "}]
[{"$nulls":7},{"$f":"IF(AND($B$14=\"Kupujúci\",$H$17=810),\"prvé pole stĺpca. Pokračujte\",\" \")","v":" "}]
[{"$nulls":7},{"$f":"IF(AND($B$14=\"Kupujúci\",$H$17=810),\"kliknutím na položku Ďalej...\",\" \")","v":" "}]
[]
[null,"Kupujúci","Súčet z Suma"]
[null,"Otec",{"v":220,"d":"220 EUR"}]
[null,"Ema",{"v":270,"d":"270 EUR"}]
[null,"Mama",{"v":810,"d":"810 EUR"}]
[null,"Celkový súčet",{"v":1300,"d":"1,300 EUR"}]
{"$rows_empty":82}
[null,"Dátum","Kupujúci","Typ","Suma"]
[null,"2017-01-01","Otec","Darčeky",{"v":95,"d":"95 EUR"}]
[null,"2017-01-15","Mama","Strava",{"v":325,"d":"325 EUR"}]
[null,"2017-01-17","Mama","Lístky",{"v":250,"d":"250 EUR"}]
[null,"2017-01-21","Otec","Strava",{"v":125,"d":"125 EUR"}]
[null,"2017-02-02","Mama","Strava",{"v":235,"d":"235 EUR"}]
[null,"2017-02-20","Ema","Hudba",{"v":20,"d":"20 EUR"}]
[null,"2017-02-25","Ema","Lístky",{"v":125,"d":"125 EUR"}]
[null,"2017-02-25","Ema","Šport",{"v":125,"d":"125 EUR"}]

{"sheet":"8","index":8,"n_rows":108,"n_cols":9,"rows_kept":108}
["Pozrieme sa podrobnejšie na kontingenčnú tabuľku, ktorú ste práve vytvorili. Tentokrát sme pridali farby, pomocou ktorých sme odlíšili polia riadkov, stĺpcov a hodnôt."]
["Pole riadka sa nachádza v bunkách C10 až C13 a je označené žltou farbou."]
["Pole stĺpca sa nachádza v bunkách D9 až H10 a je označené oranžovou farbou."]
["Pole hodnoty sa nachádza v bunkách D11 až H13 a je označené modrou farbou."]
["Ak chcete pokračovať v tomto kurze, stlačte kombináciu klávesov CTRL + PAGE DOWN. Ak chcete prejsť na predchádzajúci hárok, stlačte kombináciu klávesov CTRL + PAGE UP."]
[]
[]
[]
[null,null,"Súčet z Suma","Typ"]
[null,null,"Kupujúci","Strava","Darčeky","Hudba","Šport","Lístky","Celkový súčet"]
[null,null,"Otec",{"v":125,"d":"125 EUR"},{"v":95,"d":"95 EUR"},{"$nulls":3},{"v":220,"d":"220 EUR"}]
[null,null,"Ema",null,null,{"v":20,"d":"20 EUR"},{"v":125,"d":"125 EUR"},{"v":125,"d":"125 EUR"},{"v":270,"d":"270 EUR"}]
[null,null,"Mama",{"v":560,"d":"560 EUR"},{"$nulls":3},{"v":250,"d":"250 EUR"},{"v":810,"d":"810 EUR"}]
[null,null,"Celkový súčet",{"v":685,"d":"685 EUR"},{"v":95,"d":"95 EUR"},{"v":20,"d":"20 EUR"},{"v":125,"d":"125 EUR"},{"v":375,"d":"375 EUR"},{"v":1300,"d":"1,300 EUR"}]
{"$rows_empty":85}
[null,"Dátum","Kupujúci","Typ","Suma"]
[null,"2017-01-01","Otec","Darčeky",{"v":95,"d":"95 EUR"}]
[null,"2017-01-15","Mama","Strava",{"v":325,"d":"325 EUR"}]
[null,"2017-01-17","Mama","Lístky",{"v":250,"d":"250 EUR"}]
[null,"2017-01-21","Otec","Strava",{"v":125,"d":"125 EUR"}]
[null,"2017-02-02","Mama","Strava",{"v":235,"d":"235 EUR"}]
[null,"2017-02-20","Ema","Hudba",{"v":20,"d":"20 EUR"}]
[null,"2017-02-25","Ema","Lístky",{"v":125,"d":"125 EUR"}]
[null,"2017-02-25","Ema","Šport",{"v":125,"d":"125 EUR"}]

{"sheet":"9","index":9,"n_rows":3,"n_cols":1,"rows_kept":3}
["Môžeme sa na to pozrieť aj takto: Pole riadka sa nachádza vľavo a pole stĺpca hore. Každé z nich obsahuje podmienku pre pole hodnoty, ktoré ich sčítava."]
["Schematický obrázok, ktorý znázorňuje obdĺžnikovú oblasť so 4 časťami. Pole riadka je označené žltou farbou a nachádza sa vľavo dolu, pole stĺpca je označené oranžovou farbou a nachádza sa vpravo hore a pole hodnoty je označené modrou farbou a nachádza sa vpravo dolu."]
["Ak chcete pokračovať v tomto kurze, stlačte kombináciu klávesov CTRL + PAGE DOWN. Ak chcete prejsť na predchádzajúci hárok, stlačte kombináciu klávesov CTRL + PAGE UP."]

{"sheet":"10","index":10,"n_rows":3,"n_cols":1,"rows_kept":3}
["Myslite na to, keď budete používať zoznam polí. Pole riadka sa nachádza vľavo a pole stĺpca hore. Každé z nich obsahuje podmienku pre pole hodnoty, ktoré ich sčítava."]
["Schematický obrázok, ktorý znázorňuje zobrazený zoznam polia kontingenčnej tabuľky. Pole riadka je označené žltou farbou a nachádza sa vľavo dolu, pole stĺpca je označené oranžovou farbou a nachádza sa vpravo hore a pole hodnoty je označené modrou farbou a nachádza sa vpravo dolu."]
["Ak chcete pokračovať v tomto kurze, stlačte kombináciu klávesov CTRL + PAGE DOWN. Ak chcete prejsť na predchádzajúci hárok, stlačte kombináciu klávesov CTRL + PAGE UP."]

{"sheet":"11","index":11,"n_rows":121,"n_cols":24,"rows_kept":121}
["Netreba však zabúdať na jednu vec: Ak pomocou poľa stĺpca pridáte do kontingenčnej tabuľky veľké množstvo stĺpcov, tabuľka bude veľmi široká. "]
["V tomto príklade sa kontingenčná tabuľka nachádza v bunkách C10 až X15, keďže pole stĺpca pridalo 20 nových stĺpcov. To je naozaj veľké množstvo stĺpcov. Ľudia sa budú musieť veľa posúvať..."]
["Ak chcete pokračovať v tomto kurze, stlačte kombináciu klávesov CTRL + PAGE DOWN. Ak chcete prejsť na predchádzajúci hárok, stlačte kombináciu klávesov CTRL + PAGE UP."]
[]
[]
[]
[]
[]
[]
[null,null,"Súčet z Suma","Typ"]
[null,null,"Kupujúci","Dane","Elektrina","Elektronika","Hudba","Hudobná výchova","Knihy","Letenky","Lístky","Obedy","Oblečenie","Ošetrenie u zubára","Parkovanie","Pohonné hmoty","Poistenie auta","Poistenie domu","Poplatky v klube","Strava","Šport","Výdavky na zdravie","Zdravotné poistenie","Celkový súčet"]
[null,null,"Ema",null,null,{"v":125,"d":"125 EUR"},{"v":20,"d":"20 EUR"},{"v":250,"d":"250 EUR"},{"v":250,"d":"250 EUR"},null,{"v":125,"d":"125 EUR"},{"v":20,"d":"20 EUR"},{"v":125,"d":"125 EUR"},null,{"v":20,"d":"20 EUR"},{"$nulls":8},{"v":935,"d":"935 EUR"}]
[null,null,"Mama",null,{"v":70,"d":"70 EUR"},{"$nulls":8},{"v":235,"d":"235 EUR"},null,{"v":74,"d":"74 EUR"},{"v":74,"d":"74 EUR"},{"v":235,"d":"235 EUR"},{"v":125,"d":"125 EUR"},{"v":470,"d":"470 EUR"},null,{"v":74,"d":"74 EUR"},{"v":70,"d":"70 EUR"},{"v":1427,"d":"1,427 EUR"}]
[null,null,"Otec",{"v":500,"d":"500 EUR"},{"$nulls":5},{"v":500,"d":"500 EUR"},{"$nulls":10},{"v":1000,"d":"1,000 EUR"},null,null,{"v":2000,"d":"2,000 EUR"}]
[null,null,"Celkový súčet",{"v":500,"d":"500 EUR"},{"v":70,"d":"70 EUR"},{"v":125,"d":"125 EUR"},{"v":20,"d":"20 EUR"},{"v":250,"d":"250 EUR"},{"v":250,"d":"250 EUR"},{"v":500,"d":"500 EUR"},{"v":125,"d":"125 EUR"},{"v":20,"d":"20 EUR"},{"v":125,"d":"125 EUR"},{"v":235,"d":"235 EUR"},{"v":20,"d":"20 EUR"},{"v":74,"d":"74 EUR"},{"v":74,"d":"74 EUR"},{"v":235,"d":"235 EUR"},{"v":125,"d":"125 EUR"},{"v":470,"d":"470 EUR"},{"v":1000,"d":"1,000 EUR"},{"v":74,"d":"74 EUR"},{"v":70,"d":"70 EUR"},{"v":4362,"d":"4,362 EUR"}]
{"$rows_empty":84}
[null,"Dátum","Kupujúci","Typ","Suma"]
[null,"2017-01-17","Otec","Šport",{"v":1000,"d":"1,000 EUR"}]
[null,"2017-01-17","Otec","Letenky",{"v":500,"d":"500 EUR"}]
[null,"2017-01-17","Otec","Dane",{"v":500,"d":"500 EUR"}]
[null,"2017-02-20","Ema","Hudba",{"v":20,"d":"20 EUR"}]
[null,"2017-02-25","Ema","Lístky",{"v":125,"d":"125 EUR"}]
[null,"2017-01-21","Ema","Knihy",{"v":250,"d":"250 EUR"}]
[null,"2017-02-20","Ema","Obedy",{"v":20,"d":"20 EUR"}]
[null,"2017-02-25","Ema","Oblečenie",{"v":125,"d":"125 EUR"}]
[null,"2017-01-21","Ema","Hudobná výchova",{"v":250,"d":"250 EUR"}]
[null,"2017-02-20","Ema","Parkovanie",{"v":20,"d":"20 EUR"}]
[null,"2017-02-25","Ema","Elektronika",{"v":125,"d":"125 EUR"}]
[null,"2017-01-01","Mama","Pohonné hmoty",{"v":74,"d":"74 EUR"}]
[null,"2017-01-15","Mama","Strava",{"v":235,"d":"235 EUR"}]
[null,"2017-01-21","Mama","Poplatky v klube",{"v":125,"d":"125 EUR"}]
[null,"2017-02-02","Mama","Strava",{"v":235,"d":"235 EUR"}]
[null,"2017-01-01","Mama","Výdavky na zdravie",{"v":74,"d":"74 EUR"}]
[null,"2017-01-15","Mama","Elektrina",{"v":70,"d":"70 EUR"}]
[null,"2017-02-02","Mama","Ošetrenie u zubára",{"v":235,"d":"235 EUR"}]
[null,"2017-01-01","Mama","Poistenie auta",{"v":74,"d":"74 EUR"}]
[null,"2017-01-15","Mama","Zdravotné poistenie",{"v":70,"d":"70 EUR"}]
[null,"2017-02-02","Mama","Poistenie domu",{"v":235,"d":"235 EUR"}]

{"sheet":"12","index":12,"n_rows":119,"n_cols":5,"rows_kept":119}
["Existuje však aj alternatívne riešenie, ako sa vyhnúť mimoriadne širokým kontingenčných tabuľkám: môžete použiť druhé pole riadka. Druhé pole riadka sa zobrazí odsadené pod prvým poľom riadka."]
["V tomto príklade sa kontingenčná tabuľka nachádza v bunkách D8 až E32. V stĺpci D sa zobrazujú položky Otec, Ema a Mama ako prvé polia riadkov. Pod nimi sú ako druhé polia riadkov uvedené typy výdavkov s položkami ako Šport, Letenky, Obedy atď."]
["DOBRE VEDIEŤ\nDruhé pole riadka je vhodnejšie pre zvislo orientovanú kontingenčnú tabuľku ako pre vodorovnú. Podľa niektorých ľudí sú zvislé kontingenčné tabuľky prehľadnejšie, pretože nevyžadujú toľko posúvania z jednej strany na druhú."]
["V REČI EXCELU\nDruhé pole riadka sa niekedy zvykne nazývať aj sekundárne pole riadka."]
["Ak chcete pokračovať v tomto kurze, stlačte kombináciu klávesov CTRL + PAGE DOWN. Ak chcete prejsť na predchádzajúci hárok, stlačte kombináciu klávesov CTRL + PAGE UP."]
[]
[]
[{"$nulls":3},"Označenia riadkov","Súčet z Suma"]
[{"$nulls":3},"Otec",{"v":2000,"d":"2,000 EUR"}]
[{"$nulls":3},"Šport",{"v":1000,"d":"1,000 EUR"}]
[{"$nulls":3},"Letenky",{"v":500,"d":"500 EUR"}]
[{"$nulls":3},"Dane",{"v":500,"d":"500 EUR"}]
[{"$nulls":3},"Ema",{"v":935,"d":"935 EUR"}]
[{"$nulls":3},"Knihy",{"v":250,"d":"250 EUR"}]
[{"$nulls":3},"Hudba",{"v":20,"d":"20 EUR"}]
[{"$nulls":3},"Lístky",{"v":125,"d":"125 EUR"}]
[{"$nulls":3},"Obedy",{"v":20,"d":"20 EUR"}]
[{"$nulls":3},"Parkovanie",{"v":20,"d":"20 EUR"}]
[{"$nulls":3},"Elektronika",{"v":125,"d":"125 EUR"}]
[{"$nulls":3},"Oblečenie",{"v":125,"d":"125 EUR"}]
[{"$nulls":3},"Hudobná výchova",{"v":250,"d":"250 EUR"}]
[{"$nulls":3},"Mama",{"v":1427,"d":"1,427 EUR"}]
[{"$nulls":3},"Strava",{"v":470,"d":"470 EUR"}]
[{"$nulls":3},"Pohonné hmoty",{"v":74,"d":"74 EUR"}]
[{"$nulls":3},"Elektrina",{"v":70,"d":"70 EUR"}]
[{"$nulls":3},"Výdavky na zdravie",{"v":74,"d":"74 EUR"}]
[{"$nulls":3},"Ošetrenie u zubára",{"v":235,"d":"235 EUR"}]
[{"$nulls":3},"Poistenie auta",{"v":74,"d":"74 EUR"}]
[{"$nulls":3},"Poplatky v klube",{"v":125,"d":"125 EUR"}]
[{"$nulls":3},"Zdravotné poistenie",{"v":70,"d":"70 EUR"}]
[{"$nulls":3},"Poistenie domu",{"v":235,"d":"235 EUR"}]
[{"$nulls":3},"Celkový súčet",{"v":4362,"d":"4,362 EUR"}]
{"$rows_empty":65}
[null,"Dátum","Kupujúci","Typ","Suma"]
[null,"2017-01-17","Otec","Šport",{"v":1000,"d":"1,000 EUR"}]
[null,"2017-01-17","Otec","Letenky",{"v":500,"d":"500 EUR"}]
[null,"2017-01-17","Otec","Dane",{"v":500,"d":"500 EUR"}]
[null,"2017-02-20","Ema","Hudba",{"v":20,"d":"20 EUR"}]
[null,"2017-02-25","Ema","Lístky",{"v":125,"d":"125 EUR"}]
[null,"2017-01-21","Ema","Knihy",{"v":250,"d":"250 EUR"}]
[null,"2017-02-20","Ema","Obedy",{"v":20,"d":"20 EUR"}]
[null,"2017-02-25","Ema","Oblečenie",{"v":125,"d":"125 EUR"}]
[null,"2017-01-21","Ema","Hudobná výchova",{"v":250,"d":"250 EUR"}]
[null,"2017-02-20","Ema","Parkovanie",{"v":20,"d":"20 EUR"}]
[null,"2017-02-25","Ema","Elektronika",{"v":125,"d":"125 EUR"}]
[null,"2017-01-01","Mama","Pohonné hmoty",{"v":74,"d":"74 EUR"}]
[null,"2017-01-15","Mama","Strava",{"v":235,"d":"235 EUR"}]
[null,"2017-01-21","Mama","Poplatky v klube",{"v":125,"d":"125 EUR"}]
[null,"2017-02-02","Mama","Strava",{"v":235,"d":"235 EUR"}]
[null,"2017-01-01","Mama","Výdavky na zdravie",{"v":74,"d":"74 EUR"}]
[null,"2017-01-15","Mama","Elektrina",{"v":70,"d":"70 EUR"}]
[null,"2017-02-02","Mama","Ošetrenie u zubára",{"v":235,"d":"235 EUR"}]
[null,"2017-01-01","Mama","Poistenie auta",{"v":74,"d":"74 EUR"}]
[null,"2017-01-15","Mama","Zdravotné poistenie",{"v":70,"d":"70 EUR"}]
[null,"2017-02-02","Mama","Poistenie domu",{"v":235,"d":"235 EUR"}]

{"sheet":"13","index":13,"n_rows":3,"n_cols":1,"rows_kept":3}
["Na ďalšom hárku pridáte druhý riadok poľa. Urobíte to umiestnením poľa Typ pod pole Kupujúci v poli Riadky."]
["Obrázok zoznamu polia kontingenčnej tabuľky znázorňujúci šípku kurzora, ktorá presúva pole Typ do oblasti Riadky."]
["Ak chcete pokračovať v tomto kurze, stlačte kombináciu klávesov CTRL + PAGE DOWN. Ak chcete prejsť na predchádzajúci hárok, stlačte kombináciu klávesov CTRL + PAGE UP."]

{"sheet":"14","index":14,"n_rows":122,"n_cols":9,"rows_kept":122}
["1. Oblasť kontingenčnej tabuľky v tomto príklade sa nachádza v bunkách B13 až C17. Prejdite na ľubovoľnú z týchto buniek. "]
["2. Stlačením klávesov ALT + JZ, LB otvorte zoznam polia kontingenčnej tabuľky. Zameranie bude predvolene v textovom poli Prehľadávať. Zadajte slová, ktoré chcete vyhľadať a upraviť. Nepíšte nič, namiesto toho jedenkrát stlačte kláves Tab. POZNÁMKA: Ak sa zoznam polí nespustí, znova stlačte klávesy ALT + JZ, LB."]
["3. Stláčaním klávesov so šípkami prejdite na pole Typ. Stlačením MEDZERNÍKA pridajte pole Typ do oblasti Riadky. "]
["4. Stlačením klávesu ESC opustite tablu polia kontingenčnej tabuľky. "]
["Ak chcete pokračovať v tomto kurze, stlačte kombináciu klávesov CTRL + PAGE DOWN. Ak chcete prejsť na predchádzajúci hárok, stlačte kombináciu klávesov CTRL + PAGE UP.",{"$nulls":7},{"$f":"IF(AND($B$15=\"Dane\",$C$36=70),\"Postupujete dobre. Do kontingenčnej\",\" \")","v":" "}]
[{"$nulls":8},{"$f":"IF(AND($B$15=\"Dane\",$C$36=70),\"tabuľky ste pridali druhé pole riadka.\",\" \")","v":" "}]
[{"$nulls":8},{"$f":"IF(AND($B$15=\"Dane\",$C$36=70),\"Posuňte sa nadol a kliknite na položku\",\" \")","v":" "}]
[{"$nulls":8},{"$f":"IF(AND($B$15=\"Dane\",$C$36=70),\"Ďalej…\",\" \")","v":" "}]
[]
[]
[]
[]
[null,"Označenia riadkov","Súčet z Suma"]
[null,"Otec",{"v":2000,"d":"2,000 EUR"}]
[null,"Ema",{"v":935,"d":"935 EUR"}]
[null,"Mama",{"v":1427,"d":"1,427 EUR"}]
[null,"Celkový súčet",{"v":4362,"d":"4,362 EUR"}]
{"$rows_empty":83}
[null,"Dátum","Kupujúci","Typ","Suma"]
[null,"2017-01-17","Otec","Šport",{"v":1000,"d":"1,000 EUR"}]
[null,"2017-01-17","Otec","Letenky",{"v":500,"d":"500 EUR"}]
[null,"2017-01-17","Otec","Dane",{"v":500,"d":"500 EUR"}]
[null,"2017-02-20","Ema","Hudba",{"v":20,"d":"20 EUR"}]
[null,"2017-02-25","Ema","Lístky",{"v":125,"d":"125 EUR"}]
[null,"2017-01-21","Ema","Knihy",{"v":250,"d":"250 EUR"}]
[null,"2017-02-20","Ema","Obedy",{"v":20,"d":"20 EUR"}]
[null,"2017-02-25","Ema","Oblečenie",{"v":125,"d":"125 EUR"}]
[null,"2017-01-21","Ema","Hudobná výchova",{"v":250,"d":"250 EUR"}]
[null,"2017-02-20","Ema","Parkovanie",{"v":20,"d":"20 EUR"}]
[null,"2017-02-25","Ema","Elektronika",{"v":125,"d":"125 EUR"}]
[null,"2017-01-01","Mama","Pohonné hmoty",{"v":74,"d":"74 EUR"}]
[null,"2017-01-15","Mama","Strava",{"v":235,"d":"235 EUR"}]
[null,"2017-01-21","Mama","Poplatky v klube",{"v":125,"d":"125 EUR"}]
[null,"2017-02-02","Mama","Strava",{"v":235,"d":"235 EUR"}]
[null,"2017-01-01","Mama","Výdavky na zdravie",{"v":74,"d":"74 EUR"}]
[null,"2017-01-15","Mama","Elektrina",{"v":70,"d":"70 EUR"}]
[null,"2017-02-02","Mama","Ošetrenie u zubára",{"v":235,"d":"235 EUR"}]
[null,"2017-01-01","Mama","Poistenie auta",{"v":74,"d":"74 EUR"}]
[null,"2017-01-15","Mama","Zdravotné poistenie",{"v":70,"d":"70 EUR"}]
[null,"2017-02-02","Mama","Poistenie domu",{"v":235,"d":"235 EUR"}]

{"sheet":"15","index":15,"n_rows":121,"n_cols":7,"rows_kept":121}
["Ak potrebujete kontingenčnú tabuľku zjednodušiť, môžete údaje pre druhé pole riadka zbaliť, aby vám nezavadzali. "]
["Kontingenčná tabuľka v tomto príklade sa nachádza v bunkách F7 až G31. Výberom bunky F8 vyberte prvý riadok poľa pre otec. Ďalej stlačte klávesy Alt + JZ > A, ktorými rozbalíte druhé pole, alebo Q, ktorým ho zbalíte."]
["Ak chcete pokračovať v tomto kurze, stlačte kombináciu klávesov CTRL + PAGE DOWN. Ak chcete prejsť na predchádzajúci hárok, stlačte kombináciu klávesov CTRL + PAGE UP."]
[]
[]
[{"$nulls":5},{"$f":"IF(AND($F$9=\"Ema\",$G$9=935),\"Výborne.\",\" \")","v":" "}]
[{"$nulls":5},"Označenia riadkov","Súčet z Suma"]
[{"$nulls":5},"Otec",{"v":2000,"d":"2,000 EUR"}]
[{"$nulls":5},"Šport",{"v":1000,"d":"1,000 EUR"}]
[{"$nulls":5},"Dane",{"v":500,"d":"500 EUR"}]
[{"$nulls":5},"Letenky",{"v":500,"d":"500 EUR"}]
[{"$nulls":5},"Ema",{"v":935,"d":"935 EUR"}]
[{"$nulls":5},"Knihy",{"v":250,"d":"250 EUR"}]
[{"$nulls":5},"Obedy",{"v":20,"d":"20 EUR"}]
[{"$nulls":5},"Elektronika",{"v":125,"d":"125 EUR"}]
[{"$nulls":5},"Hudba",{"v":20,"d":"20 EUR"}]
[{"$nulls":5},"Parkovanie",{"v":20,"d":"20 EUR"}]
[{"$nulls":5},"Lístky",{"v":125,"d":"125 EUR"}]
[{"$nulls":5},"Oblečenie",{"v":125,"d":"125 EUR"}]
[{"$nulls":5},"Hudobná výchova",{"v":250,"d":"250 EUR"}]
[{"$nulls":5},"Mama",{"v":1427,"d":"1,427 EUR"}]
[{"$nulls":5},"Poistenie auta",{"v":74,"d":"74 EUR"}]
[{"$nulls":5},"Ošetrenie u zubára",{"v":235,"d":"235 EUR"}]
[{"$nulls":5},"Elektrina",{"v":70,"d":"70 EUR"}]
[{"$nulls":5},"Strava",{"v":470,"d":"470 EUR"}]
[{"$nulls":5},"Pohonné hmoty",{"v":74,"d":"74 EUR"}]
[{"$nulls":5},"Výdavky na zdravie",{"v":74,"d":"74 EUR"}]
[{"$nulls":5},"Poplatky v klube",{"v":125,"d":"125 EUR"}]
[{"$nulls":5},"Zdravotné poistenie",{"v":70,"d":"70 EUR"}]
[{"$nulls":5},"Poistenie domu",{"v":235,"d":"235 EUR"}]
[{"$nulls":5},"Celkový súčet",{"v":4362,"d":"4,362 EUR"}]
{"$rows_empty":68}
[null,"Dátum","Kupujúci","Typ","Suma"]
[null,"2017-01-17","Otec","Šport",{"v":1000,"d":"1,000 EUR"}]
[null,"2017-01-17","Otec","Letenky",{"v":500,"d":"500 EUR"}]
[null,"2017-01-17","Otec","Dane",{"v":500,"d":"500 EUR"}]
[null,"2017-02-20","Ema","Hudba",{"v":20,"d":"20 EUR"}]
[null,"2017-02-25","Ema","Lístky",{"v":125,"d":"125 EUR"}]
[null,"2017-01-21","Ema","Knihy",{"v":250,"d":"250 EUR"}]
[null,"2017-02-20","Ema","Obedy",{"v":20,"d":"20 EUR"}]
[null,"2017-02-25","Ema","Oblečenie",{"v":125,"d":"125 EUR"}]
[null,"2017-01-21","Ema","Hudobná výchova",{"v":250,"d":"250 EUR"}]
[null,"2017-02-20","Ema","Parkovanie",{"v":20,"d":"20 EUR"}]
[null,"2017-02-25","Ema","Elektronika",{"v":125,"d":"125 EUR"}]
[null,"2017-01-01","Mama","Pohonné hmoty",{"v":74,"d":"74 EUR"}]
[null,"2017-01-15","Mama","Strava",{"v":235,"d":"235 EUR"}]
[null,"2017-01-21","Mama","Poplatky v klube",{"v":125,"d":"125 EUR"}]
[null,"2017-02-02","Mama","Strava",{"v":235,"d":"235 EUR"}]
[null,"2017-01-01","Mama","Výdavky na zdravie",{"v":74,"d":"74 EUR"}]
[null,"2017-01-15","Mama","Elektrina",{"v":70,"d":"70 EUR"}]
[null,"2017-02-02","Mama","Ošetrenie u zubára",{"v":235,"d":"235 EUR"}]
[null,"2017-01-01","Mama","Poistenie auta",{"v":74,"d":"74 EUR"}]
[null,"2017-01-15","Mama","Zdravotné poistenie",{"v":70,"d":"70 EUR"}]
[null,"2017-02-02","Mama","Poistenie domu",{"v":235,"d":"235 EUR"}]

{"sheet":"16","index":16,"n_rows":121,"n_cols":7,"rows_kept":121}
["Celé druhé pole riadka môžete rozbaliť alebo zbaliť a tak kontingenčnú tabuľku ešte viac zjednodušiť."]
["Ako na to"]
["Vyberte rozsah údajov kontingenčnej tabuľky v bunkách F7 až G31 a potom prechodom na klávesy ALT + JZ > Q celú skupinu zbaľte. Naopak, klávesmi ALT + JZ > A celú skupinu rozbalíte."]
["Ak chcete pokračovať v tomto kurze, stlačte kombináciu klávesov CTRL + PAGE DOWN. Ak chcete prejsť na predchádzajúci hárok, stlačte kombináciu klávesov CTRL + PAGE UP."]
[]
[{"$nulls":5},{"$f":"IF(AND($F$9=\"Ema\",$G$9=935),\"Správne!\",\" \")","v":" "}]
[{"$nulls":5},"Označenia riadkov","Súčet z Suma"]
[{"$nulls":5},"Otec",{"v":2000,"d":"2,000 EUR"}]
[{"$nulls":5},"Šport",{"v":1000,"d":"1,000 EUR"}]
[{"$nulls":5},"Dane",{"v":500,"d":"500 EUR"}]
[{"$nulls":5},"Letenky",{"v":500,"d":"500 EUR"}]
[{"$nulls":5},"Ema",{"v":935,"d":"935 EUR"}]
[{"$nulls":5},"Knihy",{"v":250,"d":"250 EUR"}]
[{"$nulls":5},"Obedy",{"v":20,"d":"20 EUR"}]
[{"$nulls":5},"Elektronika",{"v":125,"d":"125 EUR"}]
[{"$nulls":5},"Hudba",{"v":20,"d":"20 EUR"}]
[{"$nulls":5},"Parkovanie",{"v":20,"d":"20 EUR"}]
[{"$nulls":5},"Lístky",{"v":125,"d":"125 EUR"}]
[{"$nulls":5},"Oblečenie",{"v":125,"d":"125 EUR"}]
[{"$nulls":5},"Hudobná výchova",{"v":250,"d":"250 EUR"}]
[{"$nulls":5},"Mama",{"v":1427,"d":"1,427 EUR"}]
[{"$nulls":5},"Poistenie auta",{"v":74,"d":"74 EUR"}]
[{"$nulls":5},"Ošetrenie u zubára",{"v":235,"d":"235 EUR"}]
[{"$nulls":5},"Elektrina",{"v":70,"d":"70 EUR"}]
[{"$nulls":5},"Strava",{"v":470,"d":"470 EUR"}]
[{"$nulls":5},"Pohonné hmoty",{"v":74,"d":"74 EUR"}]
[{"$nulls":5},"Výdavky na zdravie",{"v":74,"d":"74 EUR"}]
[{"$nulls":5},"Poplatky v klube",{"v":125,"d":"125 EUR"}]
[{"$nulls":5},"Zdravotné poistenie",{"v":70,"d":"70 EUR"}]
[{"$nulls":5},"Poistenie domu",{"v":235,"d":"235 EUR"}]
[{"$nulls":5},"Celkový súčet",{"v":4362,"d":"4,362 EUR"}]
{"$rows_empty":68}
[null,"Dátum","Kupujúci","Typ","Suma"]
[null,"2017-01-17","Otec","Šport",{"v":1000,"d":"1,000 EUR"}]
[null,"2017-01-17","Otec","Letenky",{"v":500,"d":"500 EUR"}]
[null,"2017-01-17","Otec","Dane",{"v":500,"d":"500 EUR"}]
[null,"2017-02-20","Ema","Hudba",{"v":20,"d":"20 EUR"}]
[null,"2017-02-25","Ema","Lístky",{"v":125,"d":"125 EUR"}]
[null,"2017-01-21","Ema","Knihy",{"v":250,"d":"250 EUR"}]
[null,"2017-02-20","Ema","Obedy",{"v":20,"d":"20 EUR"}]
[null,"2017-02-25","Ema","Oblečenie",{"v":125,"d":"125 EUR"}]
[null,"2017-01-21","Ema","Hudobná výchova",{"v":250,"d":"250 EUR"}]
[null,"2017-02-20","Ema","Parkovanie",{"v":20,"d":"20 EUR"}]
[null,"2017-02-25","Ema","Elektronika",{"v":125,"d":"125 EUR"}]
[null,"2017-01-01","Mama","Pohonné hmoty",{"v":74,"d":"74 EUR"}]
[null,"2017-01-15","Mama","Strava",{"v":235,"d":"235 EUR"}]
[null,"2017-01-21","Mama","Poplatky v klube",{"v":125,"d":"125 EUR"}]
[null,"2017-02-02","Mama","Strava",{"v":235,"d":"235 EUR"}]
[null,"2017-01-01","Mama","Výdavky na zdravie",{"v":74,"d":"74 EUR"}]
[null,"2017-01-15","Mama","Elektrina",{"v":70,"d":"70 EUR"}]
[null,"2017-02-02","Mama","Ošetrenie u zubára",{"v":235,"d":"235 EUR"}]
[null,"2017-01-01","Mama","Poistenie auta",{"v":74,"d":"74 EUR"}]
[null,"2017-01-15","Mama","Zdravotné poistenie",{"v":70,"d":"70 EUR"}]
[null,"2017-02-02","Mama","Poistenie domu",{"v":235,"d":"235 EUR"}]

{"sheet":"17","index":17,"n_rows":107,"n_cols":13,"rows_kept":107}
["Môžete mať aj viac polí stĺpcov. Tiež môžu byť zbalené alebo rozbalené."]
["Kontingenčná tabuľka v tomto príklade sa nachádza v bunkách B13 až M19. V tomto prípade máme v časti Stĺpce kategóriu Typ, ktorá zahŕňa položky pre strava a energie."]
["VYSKÚŠAJTE TOTO\nVyberte položku Strava v bunke C14 a prechodom na klávesy ALT + JZ, Q celé pole zbaľte. Klávesmi ALT + JZ > A ho môžete rozbaliť."]
["Ak chcete pokračovať v tomto kurze, stlačte kombináciu klávesov CTRL + PAGE DOWN. Ak chcete prejsť na predchádzajúci hárok, stlačte kombináciu klávesov CTRL + PAGE UP."]
{"$rows_empty":7}
[null,null,{"$f":"IF(AND($C$16=398,$D$15=\"Jan\"),\"Dobrá práca.\",\" \")","v":" "}]
[null,"Súčet z Suma","Označenia stĺpcov"]
[null,null,"Strava",{"$nulls":3},"Strava Celková hodnota","Energie",{"$nulls":3},"Energie Celková hodnota","Celkový súčet"]
[null,"Označenia riadkov","Jan","Feb","Mar","Apr",null,"Jan","Feb","Mar","Apr"]
[null,"Ema",{"v":74,"d":"74 EUR"},{"v":74,"d":"74 EUR"},{"v":125,"d":"125 EUR"},{"v":125,"d":"125 EUR"},{"v":398,"d":"398 EUR"},{"$nulls":5},{"v":398,"d":"398 EUR"}]
[null,"Otec",{"v":235,"d":"235 EUR"},{"v":235,"d":"235 EUR"},{"v":235,"d":"235 EUR"},{"v":74,"d":"74 EUR"},{"v":779,"d":"779 EUR"},{"$nulls":5},{"v":779,"d":"779 EUR"}]
[null,"Mama",{"$nulls":5},{"v":1000,"d":"1,000 EUR"},{"v":1000,"d":"1,000 EUR"},{"v":20,"d":"20 EUR"},{"v":70,"d":"70 EUR"},{"v":2090,"d":"2,090 EUR"},{"v":2090,"d":"2,090 EUR"}]
[null,"Celkový súčet",{"v":309,"d":"309 EUR"},{"v":309,"d":"309 EUR"},{"v":360,"d":"360 EUR"},{"v":199,"d":"199 EUR"},{"v":1177,"d":"1,177 EUR"},{"v":1000,"d":"1,000 EUR"},{"v":1000,"d":"1,000 EUR"},{"v":20,"d":"20 EUR"},{"v":70,"d":"70 EUR"},{"v":2090,"d":"2,090 EUR"},{"v":3267,"d":"3,267 EUR"}]
{"$rows_empty":75}
[null,"Mesiac","Kupujúci","Typ","Suma"]
[null,"Jan","Ema","Strava",{"v":74,"d":"74 EUR"}]
[null,"Jan","Otec","Strava",{"v":235,"d":"235 EUR"}]
[null,"Jan","Mama","Energie",{"v":1000,"d":"1,000 EUR"}]
[null,"Feb","Ema","Strava",{"v":74,"d":"74 EUR"}]
[null,"Feb","Otec","Strava",{"v":235,"d":"235 EUR"}]
[null,"Feb","Mama","Energie",{"v":1000,"d":"1,000 EUR"}]
[null,"Mar","Ema","Strava",{"v":125,"d":"125 EUR"}]
[null,"Mar","Otec","Strava",{"v":235,"d":"235 EUR"}]
[null,"Mar","Mama","Energie",{"v":20,"d":"20 EUR"}]
[null,"Apr","Ema","Strava",{"v":125,"d":"125 EUR"}]
[null,"Apr","Otec","Strava",{"v":74,"d":"74 EUR"}]
[null,"Apr","Mama","Energie",{"v":70,"d":"70 EUR"}]

{"sheet":"18","index":18,"n_rows":146,"n_cols":5,"rows_kept":146}
["Zapamätajte si: Ak potrebujete ďalšie podrobnosti, môžete pridať viac polí riadkov alebo polí stĺpcov. V tomto príklade pracujeme s troma poľami riadkov."]
["Kontingenčná tabuľka v tomto príklade sa nachádza v bunkách D8 až E29 a v stĺpci D obsahuje polia Ročné obdobie, Kupujúci a Typ, v stĺpci E obsahuje pole Súčet z Suma."]
["TIP OD ODBORNÍKOV\nTo že máte možnosť pridať viacero polí, automaticky neznamená, že ich pridať musíte. V tomto príklade je to v poriadku. Niekedy však príliš veľa polí so všetkými zarážkami môže spôsobiť, že kontingenčná tabuľka bude pre ostatných neprehľadná. "]
["Ak chcete pokračovať v tomto kurze, stlačte kombináciu klávesov CTRL + PAGE DOWN. Ak chcete prejsť na predchádzajúci hárok, stlačte kombináciu klávesov CTRL + PAGE UP."]
[]
[]
[]
[{"$nulls":3},"Označenia riadkov","Súčet z Suma"]
[{"$nulls":3},"Jeseň",{"v":5425,"d":"5,425 EUR"}]
[{"$nulls":3},"Mama",{"v":5425,"d":"5,425 EUR"}]
[{"$nulls":3},"Poistenie",{"v":1272,"d":"1,272 EUR"}]
[{"$nulls":3},"Nájomné",{"v":3220,"d":"3,220 EUR"}]
[{"$nulls":3},"Energie",{"v":933,"d":"933 EUR"}]
[{"$nulls":3},"Letný",{"v":4760,"d":"4,760 EUR"}]
[{"$nulls":3},"Otec",{"v":4760,"d":"4,760 EUR"}]
[{"$nulls":3},"Poistenie",{"v":1040,"d":"1,040 EUR"}]
[{"$nulls":3},"Nájomné",{"v":2400,"d":"2,400 EUR"}]
[{"$nulls":3},"Energie",{"v":1320,"d":"1,320 EUR"}]
[{"$nulls":3},"Leto",{"v":3473,"d":"3,473 EUR"}]
[{"$nulls":3},"Mama",{"v":3473,"d":"3,473 EUR"}]
[{"$nulls":3},"Poistenie",{"v":1080,"d":"1,080 EUR"}]
[{"$nulls":3},"Nájomné",{"v":1260,"d":"1,260 EUR"}]
[{"$nulls":3},"Energie",{"v":1133,"d":"1,133 EUR"}]
[{"$nulls":3},"Zima",{"v":4100,"d":"4,100 EUR"}]
[{"$nulls":3},"Otec",{"v":4100,"d":"4,100 EUR"}]
[{"$nulls":3},"Poistenie",{"v":1030,"d":"1,030 EUR"}]
[{"$nulls":3},"Nájomné",{"v":1420,"d":"1,420 EUR"}]
[{"$nulls":3},"Energie",{"v":1650,"d":"1,650 EUR"}]
[{"$nulls":3},"Celkový súčet",{"v":17758,"d":"17,758 EUR"}]
{"$rows_empty":68}
[null,"Kupujúci","Ročné obdobie","Typ","Suma"]
[null,"Otec","Zima","Poistenie",{"v":300,"d":"300 EUR"}]
[null,"Otec","Zima","Nájomné",{"v":200,"d":"200 EUR"}]
[null,"Otec","Zima","Energie",{"v":400,"d":"400 EUR"}]
[null,"Otec","Zima","Poistenie",{"v":300,"d":"300 EUR"}]
[null,"Otec","Zima","Nájomné",{"v":800,"d":"800 EUR"}]
[null,"Otec","Zima","Energie",{"v":400,"d":"400 EUR"}]
[null,"Otec","Zima","Poistenie",{"v":200,"d":"200 EUR"}]
[null,"Otec","Zima","Nájomné",{"v":300,"d":"300 EUR"}]
[null,"Otec","Zima","Energie",{"v":450,"d":"450 EUR"}]
[null,"Otec","Zima","Poistenie",{"v":230,"d":"230 EUR"}]
[null,"Otec","Zima","Nájomné",{"v":120,"d":"120 EUR"}]
[null,"Otec","Zima","Energie",{"v":400,"d":"400 EUR"}]
[null,"Otec","Letný","Poistenie",{"v":210,"d":"210 EUR"}]
[null,"Otec","Letný","Nájomné",{"v":300,"d":"300 EUR"}]
[null,"Otec","Letný","Energie",{"v":400,"d":"400 EUR"}]
[null,"Otec","Letný","Poistenie",{"v":230,"d":"230 EUR"}]
[null,"Otec","Letný","Nájomné",{"v":900,"d":"900 EUR"}]
[null,"Otec","Letný","Energie",{"v":300,"d":"300 EUR"}]
[null,"Otec","Letný","Poistenie",{"v":200,"d":"200 EUR"}]
[null,"Otec","Letný","Nájomné",{"v":1000,"d":"1,000 EUR"}]
[null,"Otec","Letný","Energie",{"v":220,"d":"220 EUR"}]
[null,"Otec","Letný","Poistenie",{"v":400,"d":"400 EUR"}]
[null,"Otec","Letný","Nájomné",{"v":200,"d":"200 EUR"}]
[null,"Otec","Letný","Energie",{"v":400,"d":"400 EUR"}]
[null,"Mama","Leto","Poistenie",{"v":100,"d":"100 EUR"}]
[null,"Mama","Leto","Nájomné",{"v":30,"d":"30 EUR"}]
[null,"Mama","Leto","Energie",{"v":123,"d":"123 EUR"}]
[null,"Mama","Leto","Poistenie",{"v":300,"d":"300 EUR"}]
[null,"Mama","Leto","Nájomné",{"v":350,"d":"350 EUR"}]
[null,"Mama","Leto","Energie",{"v":230,"d":"230 EUR"}]
[null,"Mama","Leto","Poistenie",{"v":120,"d":"120 EUR"}]
[null,"Mama","Leto","Nájomné",{"v":640,"d":"640 EUR"}]
[null,"Mama","Leto","Energie",{"v":530,"d":"530 EUR"}]
[null,"Mama","Leto","Poistenie",{"v":560,"d":"560 EUR"}]
[null,"Mama","Leto","Nájomné",{"v":240,"d":"240 EUR"}]
[null,"Mama","Leto","Energie",{"v":250,"d":"250 EUR"}]
[null,"Mama","Jeseň","Poistenie",{"v":62,"d":"62 EUR"}]
[null,"Mama","Jeseň","Nájomné",{"v":600,"d":"600 EUR"}]
[null,"Mama","Jeseň","Energie",{"v":340,"d":"340 EUR"}]
[null,"Mama","Jeseň","Poistenie",{"v":205,"d":"205 EUR"}]
[null,"Mama","Jeseň","Nájomné",{"v":500,"d":"500 EUR"}]
[null,"Mama","Jeseň","Energie",{"v":403,"d":"403 EUR"}]
[null,"Mama","Jeseň","Poistenie",{"v":503,"d":"503 EUR"}]
[null,"Mama","Jeseň","Nájomné",{"v":2000,"d":"2,000 EUR"}]
[null,"Mama","Jeseň","Energie",{"v":140,"d":"140 EUR"}]
[null,"Mama","Jeseň","Poistenie",{"v":502,"d":"502 EUR"}]
[null,"Mama","Jeseň","Nájomné",{"v":120,"d":"120 EUR"}]
[null,"Mama","Jeseň","Energie",{"v":50,"d":"50 EUR"}]

{"sheet":"19","index":19,"n_rows":55,"n_cols":5,"rows_kept":55}
["Ste pripravení na ďalšie cvičenie? Využite príležitosť a pozrite si údaje uvedené v bunkách B7 až E55 nižšie. Keď budete pripravení, prejdite na ďalší hárok a precvičte si, čo ste sa doteraz naučili. "]
["Nemusíte si pozerať všetky riadky údajov. Stačí sa zamerať na názvy polí v riadku 7. Budete s nimi pracovať na ďalšom hárku. "]
["Ak chcete pokračovať v tomto kurze, stlačte kombináciu klávesov CTRL + PAGE DOWN. Ak chcete prejsť na predchádzajúci hárok, stlačte kombináciu klávesov CTRL + PAGE UP."]
[]
[]
[]
[null,"Ročné obdobie","Obchodný zástupca","Produkt","Počet predaných jednotiek"]
[null,"Zima","Júlia","Pomaranče",300]
[null,"Zima","Juraj","Grapefruity",200]
[null,"Zima","Dušan","Jablká",400]
[null,"Zima","Júlia","Banány",300]
[null,"Zima","Juraj","Pomaranče",800]
[null,"Zima","Dušan","Grapefruity",400]
[null,"Zima","Júlia","Jablká",200]
[null,"Zima","Juraj","Banány",300]
[null,"Zima","Dušan","Pomaranče",450]
[null,"Zima","Júlia","Grapefruity",230]
[null,"Zima","Juraj","Jablká",120]
[null,"Zima","Dušan","Banány",400]
[null,"Letný","Júlia","Cvikla",210]
[null,"Letný","Juraj","Zemiaky",300]
[null,"Letný","Dušan","Hlávkový šalát",400]
[null,"Letný","Júlia","Reďkovka",230]
[null,"Letný","Juraj","Cvikla",900]
[null,"Letný","Dušan","Zemiaky",300]
[null,"Letný","Júlia","Hlávkový šalát",200]
[null,"Letný","Juraj","Reďkovka",1000]
[null,"Letný","Dušan","Cvikla",220]
[null,"Letný","Júlia","Zemiaky",400]
[null,"Letný","Juraj","Hlávkový šalát",200]
[null,"Letný","Dušan","Reďkovka",400]
[null,"Leto","Júlia","Čučoriedky",100]
[null,"Leto","Juraj","Jahody",30]
[null,"Leto","Dušan","Hrozno",123]
[null,"Leto","Júlia","Tekvica",300]
[null,"Leto","Juraj","Čučoriedky",350]
[null,"Leto","Dušan","Jahody",230]
[null,"Leto","Júlia","Hrozno",120]
[null,"Leto","Juraj","Tekvica",640]
[null,"Leto","Dušan","Čučoriedky",530]
[null,"Leto","Júlia","Jahody",560]
[null,"Leto","Juraj","Hrozno",240]
[null,"Leto","Dušan","Tekvica",250]
[null,"Jeseň","Júlia","Patizón",62]
[null,"Jeseň","Juraj","Cuketa",600]
[null,"Jeseň","Dušan","Jablká",340]
[null,"Jeseň","Júlia","Pomaranče",205]
[null,"Jeseň","Juraj","Patizón",500]
[null,"Jeseň","Dušan","Cuketa",403]
[null,"Jeseň","Júlia","Jablká",503]
[null,"Jeseň","Juraj","Pomaranče",2000]
[null,"Jeseň","Dušan","Patizón",140]
[null,"Jeseň","Júlia","Cuketa",502]
[null,"Jeseň","Juraj","Jablká",120]
[null,"Jeseň","Dušan","Pomaranče",50]

{"sheet":"20","index":20,"n_rows":17,"n_cols":11,"rows_kept":17}
["1. Oblasť kontingenčnej tabuľky v tomto príklade sa nachádza v bunkách B12 až C17. Prejdite na ľubovoľnú z týchto buniek. \n\n"]
["2. Stlačením klávesov ALT + JZ, LB otvorte zoznam polia kontingenčnej tabuľky. Zameranie bude predvolene v textovom poli Prehľadávať. Zadajte slová, ktoré chcete vyhľadať a upraviť. Nepíšte nič, namiesto toho jedenkrát stlačte kláves Tab. POZNÁMKA: Ak sa zoznam polí nespustí, znova stlačte klávesy ALT + JZ, LB."]
["3. Stláčaním klávesov so šípkami prejdite na pole Obchodný zástupca. Stlačením MEDZERNÍKA pridajte pole Obchodný zástupca do oblasti Riadky. Ak chcete zobraziť podrobnosti o Obchodný zástupca v oblasti Stĺpce, pomocou klávesu Tab prejdite na pole Obchodný zástupca v časti Riadky, stlačte MEDZERNÍK a vyberte položku Presunúť do označení stípca. Stlačením klávesu ESC opustite tablu polia kontingenčnej tabuľky. "]
["4. Určite, kto predal na jeseň najviac položiek, potom uskutočnite výber v bunke K8. "]
["Ak chcete pokračovať v tomto kurze, stlačte kombináciu klávesov CTRL + PAGE DOWN. Ak chcete prejsť na predchádzajúci hárok, stlačte kombináciu klávesov CTRL + PAGE UP."]
[]
[{"$nulls":10},"Vyberte možnosť:"]
[]
[{"$nulls":10},{"$f":"IF($K$8=\"Juraj\",\"Máte pravdu.\",IF($K$8=\"Dušan\",\"Skúste to znova...\",IF($K$8=\"Júlia\",\"Nie tak úplne...\",IF($K$8=\" \",\" \",\" \"))))","v":" "}]
[]
[]
[null,"Označenia riadkov","Súčet z Počet predaných jednotiek"]
[null,"Jeseň",5425]
[null,"Letný",4760]
[null,"Leto",3473]
[null,"Zima",4100]
[null,"Celkový súčet",17758]

{"sheet":"21","index":21,"n_rows":14,"n_cols":10,"rows_kept":14}
["1. Kliknutím do bunky B13 aktivujete kontingenčnú tabuľku s názvom Súčet z Počet predaných jednotiek.\n\n"]
["2. Stlačením klávesov ALT + JZ, LB otvorte zoznam polí kontingenčnej tabuľky. Zameranie bude predvolene v textovom poli Prehľadávať. Zadajte slová, ktoré chcete vyhľadať a upraviť. Nepíšte nič, namiesto toho jedenkrát stlačte kláves Tab. POZNÁMKA: Ak sa zoznam polí nespustí, znova stlačte klávesy ALT + JZ, LB."]
["3. Pomocou klávesov so šípkami a MEDZERNÍKA rozbaľte príklad na zvislú kontingenčnú tabuľku, v ktorej sa naľavo nachádzajú ročné obdobia a obchodní zástupcovia sa zobrazujú odsadení pod ročnými obdobiami. Stlačením klávesu ESC odídete z tably Polia kontingenčnej tabuľky. "]
["Ak chcete pokračovať v tomto kurze, stlačte kombináciu klávesov CTRL + PAGE DOWN. Ak chcete prejsť na predchádzajúci hárok, stlačte kombináciu klávesov CTRL + PAGE UP."]
[{"$nulls":9},{"$f":"IF(AND(B$14=\"Jeseň\",$C$17=3220),\"Dobrá práca. Umiestnite pole druhé\",\" \")","v":" "}]
[{"$nulls":9},{"$f":"IF(AND(B$14=\"Jeseň\",$C$17=3220),\"pole riadka. Teraz sa posuňte nadol\",\" \")","v":" "}]
[{"$nulls":9},{"$f":"IF(AND(B$14=\"Jeseň\",$C$17=3220),\"a kliknite na položku Ďalej.\",\" \")","v":" "}]
[]
[]
[]
[]
[]
[null,"Súčet z Počet predaných jednotiek"]
[null,{"v":17758,"d":"17,758"}]

{"sheet":"22","index":22,"n_rows":14,"n_cols":10,"rows_kept":14}
["1. Kliknutím do bunky B13 aktivujete kontingenčnú tabuľku s názvom Súčet z Počet predaných jednotiek."]
["2. Stlačením klávesov ALT + JZ, LB otvorte zoznam polí kontingenčnej tabuľky. Zameranie bude predvolene v textovom poli Prehľadávať. Zadajte slová, ktoré chcete vyhľadať a upraviť. Nepíšte nič, namiesto toho jedenkrát stlačte kláves Tab. POZNÁMKA: Ak sa zoznam polí nespustí, znova stlačte klávesy ALT + JZ, LB."]
["3. Pomocou klávesov so šípkami a MEDZERNÍKA upravte príklad tak, aby zobrazoval každý produkt v samostatnom riadku a každé ročné obdobie v samostatnom stĺpci."]
["Ak chcete pokračovať v tomto kurze, stlačte kombináciu klávesov CTRL + PAGE DOWN. Ak chcete prejsť na predchádzajúci hárok, stlačte kombináciu klávesov CTRL + PAGE UP.",{"$nulls":8},{"$f":"IF(AND($B$15=\"Banány\",$G$28=1000),\"Dobrá práca. Umiestnili ste\",\" \")","v":" "}]
[{"$nulls":9},{"$f":"IF(AND($B$15=\"Banány\",$G$28=1000),\"pole riadka vľavo a pole\",\" \")","v":" "}]
[{"$nulls":9},{"$f":"IF(AND($B$15=\"Banány\",$G$28=1000),\"stĺpca obsahuje štyri nové\",\" \")","v":" "}]
[{"$nulls":9},{"$f":"IF(AND($B$15=\"Banány\",$G$28=1000),\"stĺpce. Posuňte sa nadol\",\" \")","v":" "}]
[{"$nulls":9},{"$f":"IF(AND($B$15=\"Banány\",$G$28=1000),\"a kliknite na položku Ďalej…\",\" \")","v":" "}]
[]
[]
[]
[]
[null,"Súčet z Počet predaných jednotiek"]
[null,{"v":17758,"d":"17,758"}]

{"sheet":"23","index":23,"n_rows":16,"n_cols":18,"rows_kept":16}
["1. Kliknutím do bunky B13 aktivujete kontingenčnú tabuľku s názvom Súčet z Počet predaných jednotiek.\n\n"]
["2. Stlačením klávesov ALT + JZ, LB otvorte zoznam polí kontingenčnej tabuľky. Zameranie bude predvolene v textovom poli Prehľadávať. Zadajte slová, ktoré chcete vyhľadať a upraviť. Nepíšte nič, namiesto toho jedenkrát stlačte kláves Tab. POZNÁMKA: Ak sa zoznam polí nespustí, znova stlačte klávesy ALT + JZ, LB."]
["3. Pomocou klávesu Tab, klávesov so šípkami a MEDZERNÍKA upravte príklad tak, aby zobrazoval obchodných zástupcov vľavo a ročné obdobia odsadené pod nimi."]
["Ak chcete pokračovať v tomto kurze, stlačte kombináciu klávesov CTRL + PAGE DOWN. Ak chcete prejsť na predchádzajúci hárok, stlačte kombináciu klávesov CTRL + PAGE UP."]
[{"$nulls":6},{"$f":"IF(AND($B$14=\"Dušan\",$C$14=5036),\"Dobrá práca. Teraz sú údaje\",\" \")","v":" "}]
[{"$nulls":6},{"$f":"IF(AND($B$14=\"Dušan\",$C$14=5036),\"prehľadnejšie. Posuňte sa nadol\",\" \")","v":" "}]
[{"$nulls":6},{"$f":"IF(AND($B$14=\"Dušan\",$C$14=5036),\"a kliknite na položku Ďalej…\",\" \")","v":" "}]
[]
[]
[]
[]
[]
[null,null,"Označenia stĺpcov"]
[null,null,"Dušan",{"$nulls":3},"Dušan Celková hodnota","Juraj",{"$nulls":3},"Juraj Celková hodnota","Júlia",{"$nulls":3},"Júlia Celková hodnota","Celkový súčet"]
[null,null,"Jeseň","Letný","Leto","Zima",null,"Jeseň","Letný","Leto","Zima",null,"Jeseň","Letný","Leto","Zima"]
[null,"Súčet z Počet predaných jednotiek",933,{"v":1320,"d":"1,320"},{"v":1133,"d":"1,133"},{"v":1650,"d":"1,650"},{"v":5036,"d":"5,036"},{"v":3220,"d":"3,220"},{"v":2400,"d":"2,400"},{"v":1260,"d":"1,260"},{"v":1420,"d":"1,420"},{"v":8300,"d":"8,300"},{"v":1272,"d":"1,272"},{"v":1040,"d":"1,040"},{"v":1080,"d":"1,080"},{"v":1030,"d":"1,030"},{"v":4422,"d":"4,422"},{"v":17758,"d":"17,758"}]

{"sheet":"24","index":24,"n_rows":14,"n_cols":9,"rows_kept":14}
["1. Kliknutím do bunky B13 aktivujete kontingenčnú tabuľku s názvom Súčet z Počet predaných jednotiek."]
["2. Stlačením klávesov ALT + JZ, LB otvorte zoznam polí kontingenčnej tabuľky. Zameranie bude predvolene v textovom poli Prehľadávať. Zadajte slová, ktoré chcete vyhľadať a upraviť. Nepíšte nič, namiesto toho jedenkrát stlačte kláves Tab. POZNÁMKA: Ak sa zoznam polí nespustí, znova stlačte klávesy ALT + JZ, LB."]
["3. Pomocou klávesu Tab, klávesov so šípkami a MEDZERNÍKA upravte príklad tak, aby mal každý obchodný zástupca vlastné polia stĺpcov s ročnými obdobiami vľavo a produktmi odsadenými pod nimi."]
["4. Vyberte bunku I9 a vyberte, koľko grapefruitov predal Dušan počas zimy."]
["Ak chcete pokračovať v tomto kurze, stlačte kombináciu klávesov CTRL + PAGE DOWN. Ak chcete prejsť na predchádzajúci hárok, stlačte kombináciu klávesov CTRL + PAGE UP."]
[]
[]
[{"$nulls":8},"Vyberte možnosť:"]
[]
[{"$nulls":8},{"$f":"IF($I$9=400,\"Máte pravdu.\",IF($I$9=530,\"Skúste to znova...\",IF($I$9=123,\"Nie tak úplne...\",\" \")))","v":" "}]
[]
[]
[null,"Súčet z Počet predaných jednotiek"]
[null,{"v":17758,"d":"17,758"}]

{"sheet":"Ďalšie informácie","index":25,"n_rows":7,"n_cols":1,"rows_kept":7}
["Dobrá práca. Nie sú kontingenčné tabuľky skvelé?"]
["Odporúčame vám však pokračovať ďalej. Vždy je čo objavovať..."]
["Ďalšie informácie o kontingenčných tabuľkách\nSpoznajte ďalšie možnosti v tomto užitočnom článku o kontingenčných tabuľkách."]
["Informácie o obnovení\nPrečítajte si tento zaujímavý článok o možnostiach obnovenia kontingenčných tabuliek. "]
["Komunita\nSpojte sa s ďalšími fanúšikmi Excelu. Buď môžu pomôcť oni vám, alebo vy im."]
[]
[" "]